[Event "GrandPrix_29.05"]
[Site "Chess.com"]
[Date "2020.05.29"]
[Round "2"]
[White "ninullia"]
[Black "Grandelicious"]
[Result "0-1"]
[WhiteElo "2278"]
[BlackElo "2729"]
[TimeControl "600+2"]
[EndTime "9:58:11 PDT"]
[Termination "Grandelicious won by checkmate"]

1. d4 {[%clk 0:10:01.9]} 1... d5 {[%clk 0:09:47.9]} 2. c4 {[%clk 0:10:00.8]}
2... e6 {[%clk 0:09:48.7]} 3. Nf3 {[%clk 0:10:01.1]} 3... a6 {[%clk 0:09:49.8]}
4. e3 {[%clk 0:09:56.2]} 4... Nf6 {[%clk 0:09:50.2]} 5. Nc3 {[%clk 0:09:56.8]}
5... dxc4 {[%clk 0:09:44.7]} 6. Bxc4 {[%clk 0:09:57.2]} 6... b5 {[%clk
0:09:45.7]} 7. Bd3 {[%clk 0:09:56.8]} 7... Bb7 {[%clk 0:09:46.8]} 8. O-O {[%clk
0:09:56]} 8... Nbd7 {[%clk 0:09:41.8]} 9. a3 {[%clk 0:09:42.6]} 9... c5 {[%clk
0:09:34.1]} 10. Bd2 {[%clk 0:09:34.5]} 10... Bd6 {[%clk 0:09:26.3]} 11. Rc1
{[%clk 0:09:26.4]} 11... O-O {[%clk 0:09:25]} 12. Bb1 {[%clk 0:09:19.7]} 12...
cxd4 {[%clk 0:08:38.2]} 13. Nxd4 {[%clk 0:09:04.2]} 13... Ne5 {[%clk 0:08:37.1]}
14. Qe2 {[%clk 0:08:37.6]} 14... Nc4 {[%clk 0:08:29.4]} 15. Be1 {[%clk
0:08:31.8]} 15... Qb6 {[%clk 0:08:01.7]} 16. a4 {[%clk 0:08:19.1]} 16... Be5
{[%clk 0:06:43.8]} 17. axb5 {[%clk 0:07:48.8]} 17... Bxd4 {[%clk 0:06:43.4]} 18.
exd4 {[%clk 0:07:48.6]} 18... axb5 {[%clk 0:06:44.8]} 19. Bd3 {[%clk 0:07:18.5]}
19... Qxd4 {[%clk 0:06:21.5]} 20. Nxb5 {[%clk 0:06:59.4]} 20... Qd5 {[%clk
0:05:33.6]} 21. f3 {[%clk 0:06:28.9]} 21... Ne5 {[%clk 0:04:48.9]} 22. Be4
{[%clk 0:03:24.8]} 22... Nxe4 {[%clk 0:04:38.5]} 23. fxe4 {[%clk 0:03:23.7]}
23... Qxe4 {[%clk 0:04:22]} 24. Qxe4 {[%clk 0:03:20.3]} 24... Bxe4 {[%clk
0:04:23.9]} 25. Nc3 {[%clk 0:02:36.1]} 25... Bg6 {[%clk 0:03:36.4]} 26. Bg3
{[%clk 0:02:20.3]} 26... Nd3 {[%clk 0:03:36.3]} 27. Rc2 {[%clk 0:02:19.3]} 27...
Rfc8 {[%clk 0:03:29.7]} 28. Rd2 {[%clk 0:02:05.3]} 28... Nxb2 {[%clk 0:03:15.6]}
29. Rxb2 {[%clk 0:01:51.7]} 29... Rxc3 {[%clk 0:03:16]} 30. Rb8+ {[%clk
0:01:53.2]} 30... Rxb8 {[%clk 0:03:16]} 31. Bxb8 {[%clk 0:01:55.1]} 31... f6
{[%clk 0:02:58.9]} 32. Rd1 {[%clk 0:01:43.9]} 32... Be4 {[%clk 0:02:50.8]} 33.
Rd2 {[%clk 0:01:36]} 33... Bd5 {[%clk 0:02:42.7]} 34. Kf2 {[%clk 0:01:35.4]}
34... Kf7 {[%clk 0:02:41.8]} 35. Rb2 {[%clk 0:01:35.6]} 35... g5 {[%clk
0:02:37.4]} 36. Bd6 {[%clk 0:01:35.7]} 36... Kg6 {[%clk 0:02:35]} 37. Rd2 {[%clk
0:01:26]} 37... h5 {[%clk 0:02:30.4]} 38. Rb2 {[%clk 0:01:15.9]} 38... h4 {[%clk
0:02:30.5]} 39. Rd2 {[%clk 0:01:06.4]} 39... h3 {[%clk 0:02:29.5]} 40. gxh3
{[%clk 0:00:57.6]} 40... Rxh3 {[%clk 0:02:31.4]} 41. Rb2 {[%clk 0:00:58.2]}
41... e5 {[%clk 0:02:15.9]} 42. Kg1 {[%clk 0:00:52.8]} 42... Rd3 {[%clk
0:02:07.4]} 43. Kf2 {[%clk 0:00:39.4]} 43... Kf5 {[%clk 0:01:59.3]} 44. Be7
{[%clk 0:00:37.9]} 44... Rf3+ {[%clk 0:01:57.3]} 45. Kg1 {[%clk 0:00:35.7]}
45... Ke6 {[%clk 0:01:19.6]} 46. Bd8 {[%clk 0:00:34.3]} 46... Kd7 {[%clk
0:01:12.9]} 47. Bb6 {[%clk 0:00:12.5]} 47... g4 {[%clk 0:01:13.7]} 48. Rd2
{[%clk 0:00:13.1]} 48... Ke6 {[%clk 0:01:11.1]} 49. Bd8 {[%clk 0:00:14.2]} 49...
Rb3 {[%clk 0:00:58.8]} 50. Kf2 {[%clk 0:00:10.9]} 50... f5 {[%clk 0:00:55.1]}
51. Rc2 {[%clk 0:00:06.5]} 51... f4 {[%clk 0:00:53.1]} 52. Bc7 {[%clk
0:00:06.7]} 52... Kf5 {[%clk 0:00:34.3]} 53. Re2 {[%clk 0:00:04.6]} 53... e4
{[%clk 0:00:30.7]} 54. Rc2 {[%clk 0:00:05]} 54... e3+ {[%clk 0:00:31.1]} 55. Ke1
{[%clk 0:00:03.4]} 55... Rb1+ {[%clk 0:00:31.6]} 56. Ke2 {[%clk 0:00:04.2]}
56... Bf3+ {[%clk 0:00:33.3]} 57. Kd3 {[%clk 0:00:05.3]} 57... Be4+ {[%clk
0:00:34.9]} 58. Ke2 {[%clk 0:00:06.5]} 58... Bxc2 {[%clk 0:00:35.7]} 59. h3
{[%clk 0:00:06.6]} 59... gxh3 {[%clk 0:00:34.6]} 60. Bxf4 {[%clk 0:00:07.1]}
60... Ke4 {[%clk 0:00:25.7]} 61. Bh2 {[%clk 0:00:04.4]} 61... Bd3# {[%clk
0:00:26]} 0-1

[Event "GrandPrix_29.05"]
[Site "Chess.com"]
[Date "2020.05.29"]
[Round "2"]
[White "Misi_95"]
[Black "Matibar"]
[Result "0-1"]
[WhiteElo "2083"]
[BlackElo "2488"]
[TimeControl "600+2"]
[EndTime "9:58:11 PDT"]
[Termination "Matibar won by resignation"]

1. e4 {[%clk 0:10:01.9]} 1... d5 {[%clk 0:09:57.9]} 2. exd5 {[%clk 0:10:02.3]}
2... Qxd5 {[%clk 0:09:59.8]} 3. Nc3 {[%clk 0:10:03.1]} 3... Qd8 {[%clk
0:10:00.7]} 4. d4 {[%clk 0:10:03.2]} 4... Nf6 {[%clk 0:10:02]} 5. Nf3 {[%clk
0:10:03.1]} 5... g6 {[%clk 0:10:03.4]} 6. g3 {[%clk 0:10:03.9]} 6... Bg4 {[%clk
0:09:58.6]} 7. Bg2 {[%clk 0:09:59.3]} 7... c6 {[%clk 0:09:58.9]} 8. O-O {[%clk
0:09:58.7]} 8... Bg7 {[%clk 0:10:00]} 9. Re1 {[%clk 0:09:58]} 9... O-O {[%clk
0:10:00.8]} 10. Bg5 {[%clk 0:09:53.3]} 10... Nbd7 {[%clk 0:10:01.6]} 11. h3
{[%clk 0:09:53.8]} 11... Bxf3 {[%clk 0:10:02.3]} 12. Qxf3 {[%clk 0:09:55.7]}
12... e6 {[%clk 0:10:03.4]} 13. Rad1 {[%clk 0:09:56.1]} 13... h6 {[%clk
0:09:58.1]} 14. Bc1 {[%clk 0:09:54.7]} 14... Qa5 {[%clk 0:09:42]} 15. a3 {[%clk
0:09:43.6]} 15... a6 {[%clk 0:09:39.6]} 16. Ne2 {[%clk 0:09:31.3]} 16... Qf5
{[%clk 0:09:27.8]} 17. Qxf5 {[%clk 0:09:23.6]} 17... gxf5 {[%clk 0:09:26.9]} 18.
Nf4 {[%clk 0:09:21.1]} 18... a5 {[%clk 0:08:45.1]} 19. a4 {[%clk 0:08:46]} 19...
Nb6 {[%clk 0:08:31.1]} 20. b3 {[%clk 0:08:34.2]} 20... Nbd5 {[%clk 0:08:31.9]}
21. c4 {[%clk 0:08:11.2]} 21... Nxf4 {[%clk 0:08:20.1]} 22. Bxf4 {[%clk
0:08:10]} 22... Rfd8 {[%clk 0:08:22]} 23. Be5 {[%clk 0:06:52.1]} 23... Rd7
{[%clk 0:08:00.3]} 24. Rb1 {[%clk 0:05:05]} 24... Ne8 {[%clk 0:07:35.3]} 25. b4
{[%clk 0:04:59.9]} 25... axb4 {[%clk 0:03:00.8]} 26. Rxb4 {[%clk 0:04:58.7]}
26... Nd6 {[%clk 0:03:02.4]} 27. c5 {[%clk 0:04:24.9]} 27... Bxe5 {[%clk
0:02:45.3]} 28. dxe5 {[%clk 0:04:16.4]} 28... Nc8 {[%clk 0:02:45.2]} 29. Reb1
{[%clk 0:03:14.8]} 29... Ra7 {[%clk 0:02:44.3]} 30. a5 {[%clk 0:02:26.1]} 30...
Ne7 {[%clk 0:02:40.3]} 31. Rb6 {[%clk 0:01:25.4]} 31... Rxa5 {[%clk 0:01:35.2]}
32. Rxb7 {[%clk 0:01:24.5]} 32... Rxb7 {[%clk 0:01:37.1]} 33. Rxb7 {[%clk
0:01:25.5]} 33... Kf8 {[%clk 0:01:38.6]} 34. Rb8+ {[%clk 0:01:21.1]} 34... Kg7
{[%clk 0:01:39.3]} 35. Rb7 {[%clk 0:01:17.9]} 35... Ng6 {[%clk 0:01:32.2]} 36.
Bxc6 {[%clk 0:00:47.4]} 36... Rxc5 {[%clk 0:01:21]} 37. Bd7 {[%clk 0:00:47.6]}
37... Rxe5 {[%clk 0:01:04.1]} 38. f4 {[%clk 0:00:45.2]} 38... Re4 {[%clk
0:00:53.4]} 39. Be8 {[%clk 0:00:40.2]} 39... Nh8 {[%clk 0:00:54.1]} 40. Kf2
{[%clk 0:00:36.2]} 40... Rd4 {[%clk 0:00:53]} 41. Bb5 {[%clk 0:00:23.3]} 41...
Rd8 {[%clk 0:00:52.3]} 42. Be2 {[%clk 0:00:23.2]} 42... Ng6 {[%clk 0:00:52]} 43.
Bh5 {[%clk 0:00:23.5]} 43... Rd2+ {[%clk 0:00:51]} 44. Kf3 {[%clk 0:00:24]}
44... Rd3+ {[%clk 0:00:44.3]} 45. Kf2 {[%clk 0:00:25]} 45... Nh8 {[%clk
0:00:38]} 46. Be2 {[%clk 0:00:24.3]} 46... Ra3 {[%clk 0:00:38.1]} 47. Bh5 {[%clk
0:00:24.7]} 47... Ra2+ {[%clk 0:00:38.4]} 48. Kf3 {[%clk 0:00:25.4]} 48... Ra8
{[%clk 0:00:39.5]} 49. Kf2 {[%clk 0:00:25.4]} 49... Kf6 {[%clk 0:00:38.6]} 50.
Kf3 {[%clk 0:00:26.2]} 50... Ra3+ {[%clk 0:00:28.4]} 51. Kf2 {[%clk 0:00:27]}
51... Ng6 {[%clk 0:00:30]} 52. h4 {[%clk 0:00:24.4]} 52... Ne7 {[%clk
0:00:20.4]} 53. Kg2 {[%clk 0:00:23.6]} 53... Ra8 {[%clk 0:00:19.6]} 54. Kf2
{[%clk 0:00:24]} 54... Rf8 {[%clk 0:00:20.5]} 55. Kg2 {[%clk 0:00:24.9]} 55...
Nd5 {[%clk 0:00:20.9]} 56. Kf2 {[%clk 0:00:25.4]} 56... Kg7 {[%clk 0:00:21.5]}
57. g4 {[%clk 0:00:20.8]} 57... Nf6 {[%clk 0:00:22.1]} 58. Kg3 {[%clk
0:00:21.2]} 58... Ne4+ {[%clk 0:00:14.3]} 59. Kf3 {[%clk 0:00:21.6]} 59... Nf6
{[%clk 0:00:16.2]} 60. Kg3 {[%clk 0:00:20.4]} 60... Nxh5+ {[%clk 0:00:17.5]} 61.
gxh5 {[%clk 0:00:21.5]} 61... Ra8 {[%clk 0:00:18]} 62. Rb8 {[%clk 0:00:18.4]}
62... Rxb8 {[%clk 0:00:18.6]} 0-1

[Event "GrandPrix_29.05"]
[Site "Chess.com"]
[Date "2020.05.29"]
[Round "2"]
[White "Forking_U"]
[Black "ENajer77"]
[Result "1/2-1/2"]
[WhiteElo "2172"]
[BlackElo "2297"]
[TimeControl "600+2"]
[EndTime "9:58:14 PDT"]
[Termination "Game drawn by repetition"]

1. e4 {[%clk 0:10:01.9]} 1... c6 {[%clk 0:09:49.5]} 2. d4 {[%clk 0:10:01.1]}
2... d5 {[%clk 0:09:49.6]} 3. e5 {[%clk 0:10:02.7]} 3... Bf5 {[%clk 0:09:49]} 4.
h4 {[%clk 0:10:03.1]} 4... h5 {[%clk 0:09:48]} 5. Bd3 {[%clk 0:10:04.5]} 5...
Bxd3 {[%clk 0:09:47.7]} 6. Qxd3 {[%clk 0:10:06.4]} 6... Qa5+ {[%clk 0:09:48.5]}
7. Bd2 {[%clk 0:09:53.2]} 7... Qa6 {[%clk 0:09:45.7]} 8. e6 {[%clk 0:09:54]}
8... Qxd3 {[%clk 0:09:43.1]} 9. exf7+ {[%clk 0:09:41.2]} 9... Kxf7 {[%clk
0:09:43.9]} 10. cxd3 {[%clk 0:09:42.9]} 10... e6 {[%clk 0:09:21.8]} 11. Nf3
{[%clk 0:09:34.5]} 11... Bd6 {[%clk 0:09:20.3]} 12. Ng5+ {[%clk 0:08:18.6]}
12... Ke7 {[%clk 0:09:03.9]} 13. O-O {[%clk 0:07:59.8]} 13... Na6 {[%clk
0:09:00]} 14. Bc3 {[%clk 0:07:34.2]} 14... Nh6 {[%clk 0:08:37.4]} 15. Nd2 {[%clk
0:07:34.8]} 15... Nf7 {[%clk 0:08:19]} 16. Nh3 {[%clk 0:06:39.9]} 16... Nc7
{[%clk 0:07:42.6]} 17. Rae1 {[%clk 0:06:25.8]} 17... Kd7 {[%clk 0:07:14]} 18.
Nf3 {[%clk 0:06:08.1]} 18... a5 {[%clk 0:07:07.5]} 19. Bd2 {[%clk 0:05:48.8]}
19... a4 {[%clk 0:06:40.3]} 20. a3 {[%clk 0:05:35.3]} 20... Ra6 {[%clk
0:06:14.9]} 21. Nf4 {[%clk 0:05:01.7]} 21... Rb6 {[%clk 0:05:56.2]} 22. Ng6
{[%clk 0:05:02.8]} 22... Re8 {[%clk 0:05:18]} 23. Bc1 {[%clk 0:04:54.2]} 23...
Rb3 {[%clk 0:05:16.2]} 24. Re3 {[%clk 0:04:38]} 24... b6 {[%clk 0:04:47.1]} 25.
Nd2 {[%clk 0:04:00.2]} 25... Rb5 {[%clk 0:04:45.7]} 26. Rf3 {[%clk 0:03:53.3]}
26... Nh6 {[%clk 0:04:44.4]} 27. Nb1 {[%clk 0:03:51.1]} 27... Nf5 {[%clk
0:04:39.2]} 28. Nc3 {[%clk 0:03:35.7]} 28... Rb3 {[%clk 0:04:39.5]} 29. Nxa4
{[%clk 0:03:02.3]} 29... Nxd4 {[%clk 0:04:37.8]} 30. Rf7+ {[%clk 0:03:03.2]}
30... Kc8 {[%clk 0:04:29.8]} 31. Rxg7 {[%clk 0:02:28.4]} 31... Ne2+ {[%clk
0:03:59.5]} 32. Kh1 {[%clk 0:02:29.4]} 32... b5 {[%clk 0:03:33.4]} 33. Nb6+
{[%clk 0:01:52.2]} 33... Kb7 {[%clk 0:03:32.1]} 34. Nd7 {[%clk 0:01:48.7]} 34...
Rxd3 {[%clk 0:03:29.5]} 35. Bg5 {[%clk 0:01:02.7]} 35... Rb3 {[%clk 0:03:04.8]}
36. Rb1 {[%clk 0:00:40.1]} 36... Nc3 {[%clk 0:01:34.1]} 37. Rc1 {[%clk 0:00:32]}
37... Ne4 {[%clk 0:01:34.4]} 38. Be3 {[%clk 0:00:12]} 38... Ng3+ {[%clk
0:01:09.8]} 39. fxg3 {[%clk 0:00:08.3]} 39... Rxe3 {[%clk 0:01:10.5]} 40. Nf4
{[%clk 0:00:03.7]} 40... d4 {[%clk 0:01:02.2]} 41. Nc5+ {[%clk 0:00:02.7]} 41...
Kb6 {[%clk 0:00:49.9]} 42. b4 {[%clk 0:00:02.3]} 42... Rxa3 {[%clk 0:00:34.3]}
43. Nd7+ {[%clk 0:00:03.7]} 43... Kb7 {[%clk 0:00:34]} 44. Nc5+ {[%clk
0:00:02.9]} 44... Kc8 {[%clk 0:00:25.1]} 45. Re1 {[%clk 0:00:02.7]} 45... e5
{[%clk 0:00:21.5]} 46. Nxh5 {[%clk 0:00:02.5]} 46... d3 {[%clk 0:00:17.6]} 47.
Nf6 {[%clk 0:00:02.7]} 47... Rd8 {[%clk 0:00:13]} 48. Nfe4 {[%clk 0:00:03.3]}
48... d2 {[%clk 0:00:11.2]} 49. Nxd6+ {[%clk 0:00:03.6]} 49... Rxd6 {[%clk
0:00:11.4]} 50. Rd1 {[%clk 0:00:03.3]} 50... Na6 {[%clk 0:00:06.6]} 51. Rg8+
{[%clk 0:00:04.3]} 51... Kc7 {[%clk 0:00:07.4]} 52. Rg7+ {[%clk 0:00:04.3]}
52... Kb8 {[%clk 0:00:08.1]} 53. Rg8+ {[%clk 0:00:03.9]} 53... Ka7 {[%clk
0:00:07.8]} 54. Rg7+ {[%clk 0:00:03.7]} 54... Kb8 {[%clk 0:00:06]} 55. Rg8+
{[%clk 0:00:04.3]} 55... Kc7 {[%clk 0:00:05.7]} 56. Rg7+ {[%clk 0:00:04.8]}
56... Kc8 {[%clk 0:00:04.2]} 57. Rg8+ {[%clk 0:00:05.4]} 57... Kc7 {[%clk
0:00:04.8]} 1/2-1/2

[Event "GrandPrix_29.05"]
[Site "Chess.com"]
[Date "2020.05.29"]
[Round "2"]
[White "Evgeny81"]
[Black "anesar92"]
[Result "1-0"]
[WhiteElo "2568"]
[BlackElo "2101"]
[TimeControl "600+2"]
[EndTime "9:58:15 PDT"]
[Termination "Evgeny81 won by resignation"]

1. d4 {[%clk 0:09:51.1]} 1... Nf6 {[%clk 0:09:56]} 2. c4 {[%clk 0:09:51.2]} 2...
g6 {[%clk 0:09:48.5]} 3. Nc3 {[%clk 0:09:51.5]} 3... Bg7 {[%clk 0:09:48.6]} 4.
e4 {[%clk 0:09:52]} 4... d6 {[%clk 0:09:49]} 5. Nf3 {[%clk 0:09:52.7]} 5... O-O
{[%clk 0:09:49.9]} 6. Be2 {[%clk 0:09:52.7]} 6... e5 {[%clk 0:09:50.2]} 7. d5
{[%clk 0:09:50.7]} 7... Na6 {[%clk 0:09:42]} 8. Be3 {[%clk 0:09:46.8]} 8... Ng4
{[%clk 0:09:31.5]} 9. Bg5 {[%clk 0:09:46.9]} 9... f6 {[%clk 0:09:31.4]} 10. Bh4
{[%clk 0:09:47.4]} 10... h5 {[%clk 0:09:24.6]} 11. Nd2 {[%clk 0:09:32.3]} 11...
Nh6 {[%clk 0:09:17.5]} 12. f3 {[%clk 0:09:26.8]} 12... g5 {[%clk 0:08:57.1]} 13.
Bf2 {[%clk 0:09:25.9]} 13... f5 {[%clk 0:08:57.7]} 14. exf5 {[%clk 0:08:58.5]}
14... Nxf5 {[%clk 0:08:56.2]} 15. Nde4 {[%clk 0:08:55.5]} 15... Nd4 {[%clk
0:08:43.3]} 16. O-O {[%clk 0:08:46.3]} 16... Bf5 {[%clk 0:08:34]} 17. Be3 {[%clk
0:07:52.1]} 17... Nxe2+ {[%clk 0:06:54.8]} 18. Nxe2 {[%clk 0:07:22]} 18... g4
{[%clk 0:06:31.9]} 19. N2g3 {[%clk 0:07:18.5]} 19... Bg6 {[%clk 0:05:46.9]} 20.
fxg4 {[%clk 0:06:21.8]} 20... Rxf1+ {[%clk 0:05:38.8]} 21. Kxf1 {[%clk
0:05:43.5]} 21... Qh4 {[%clk 0:05:37.3]} 22. h3 {[%clk 0:05:34.4]} 22... Rf8+
{[%clk 0:05:16.9]} 23. Kg1 {[%clk 0:05:31.8]} 23... hxg4 {[%clk 0:05:09.2]} 24.
Qxg4 {[%clk 0:05:15.7]} 24... Qxg4 {[%clk 0:04:57.8]} 25. hxg4 {[%clk
0:05:17.6]} 25... Nb4 {[%clk 0:04:58.4]} 26. Bd2 {[%clk 0:04:39.6]} 26... Nd3
{[%clk 0:04:54.6]} 27. b3 {[%clk 0:04:27.9]} 27... Nf4 {[%clk 0:04:52.1]} 28.
Re1 {[%clk 0:04:19.2]} 28... b6 {[%clk 0:04:27.2]} 29. Re3 {[%clk 0:03:44.6]}
29... a5 {[%clk 0:03:45.7]} 30. Rf3 {[%clk 0:03:42.1]} 30... Ne2+ {[%clk
0:02:26.3]} 31. Nxe2 {[%clk 0:03:17.3]} 31... Bxe4 {[%clk 0:02:26.1]} 32. Rxf8+
{[%clk 0:03:18.9]} 32... Kxf8 {[%clk 0:02:27.6]} 33. Nc3 {[%clk 0:02:50.6]}
33... Bd3 {[%clk 0:02:11.1]} 34. Nb5 {[%clk 0:02:02.3]} 34... e4 {[%clk
0:02:01.2]} 35. Bc3 {[%clk 0:01:44.2]} 35... Bh6 {[%clk 0:01:33.2]} 36. Nxc7
{[%clk 0:01:32.1]} 36... Be3+ {[%clk 0:01:29.8]} 37. Kh2 {[%clk 0:01:31.1]}
37... Bf2 {[%clk 0:01:28.4]} 38. Bd4 {[%clk 0:00:55.1]} 38... e3 {[%clk
0:01:12.6]} 39. Bxb6 {[%clk 0:00:54]} 39... Bb1 {[%clk 0:01:13.1]} 40. a3 {[%clk
0:00:28.6]} 40... Ba2 {[%clk 0:01:12.5]} 41. Ne6+ {[%clk 0:00:23.7]} 41... Ke7
{[%clk 0:01:03.7]} 42. Nd4 {[%clk 0:00:23.5]} 42... a4 {[%clk 0:01:00.6]} 43.
bxa4 {[%clk 0:00:20.2]} 43... Bxc4 {[%clk 0:01:02.5]} 44. Nf5+ {[%clk
0:00:20.3]} 44... Kd7 {[%clk 0:00:59.2]} 45. Nxe3 {[%clk 0:00:18.4]} 45... Bxe3
{[%clk 0:00:46.8]} 46. Bxe3 {[%clk 0:00:18.7]} 46... Bxd5 {[%clk 0:00:48.7]} 47.
g5 {[%clk 0:00:12.7]} 47... Ke6 {[%clk 0:00:49.1]} 48. Kg3 {[%clk 0:00:09.8]}
48... Kf5 {[%clk 0:00:49.5]} 49. a5 {[%clk 0:00:10]} 49... Bb7 {[%clk
0:00:44.1]} 50. Kf2 {[%clk 0:00:05.4]} 50... d5 {[%clk 0:00:43.8]} 51. g4+
{[%clk 0:00:05.8]} 51... Kg6 {[%clk 0:00:40.7]} 52. Kg3 {[%clk 0:00:06.6]} 52...
d4 {[%clk 0:00:41.1]} 53. Bd2 {[%clk 0:00:07.5]} 53... Kf7 {[%clk 0:00:39.4]}
54. Kf4 {[%clk 0:00:08.8]} 54... Ke6 {[%clk 0:00:40.6]} 55. Be1 {[%clk
0:00:05.4]} 55... Ba8 {[%clk 0:00:40.5]} 56. Bb4 {[%clk 0:00:06.3]} 56... Bb7
{[%clk 0:00:39.8]} 57. Bd2 {[%clk 0:00:07]} 57... Ba8 {[%clk 0:00:40.1]} 58. a6
{[%clk 0:00:08.3]} 58... Bc6 {[%clk 0:00:40.6]} 59. a7 {[%clk 0:00:09]} 59...
Ba8 {[%clk 0:00:41.3]} 60. Kg3 {[%clk 0:00:09.9]} 60... Bb7 {[%clk 0:00:42]} 61.
Kh4 {[%clk 0:00:11]} 61... Kf7 {[%clk 0:00:43.1]} 62. Kh5 {[%clk 0:00:11.6]}
62... Kg7 {[%clk 0:00:43.6]} 63. Bf4 {[%clk 0:00:12.6]} 63... d3 {[%clk
0:00:44.6]} 64. Bd2 {[%clk 0:00:13.5]} 64... Kf7 {[%clk 0:00:44.4]} 65. g6+
{[%clk 0:00:14.2]} 65... Kg8 {[%clk 0:00:45.4]} 66. Kg5 {[%clk 0:00:14.5]} 66...
Kg7 {[%clk 0:00:47.3]} 67. Bc3+ {[%clk 0:00:15.4]} 67... Kg8 {[%clk 0:00:48]}
68. Kf6 {[%clk 0:00:16.6]} 1-0

[Event "GrandPrix_29.05"]
[Site "Chess.com"]
[Date "2020.05.29"]
[Round "2"]
[White "larrylarsen"]
[Black "am00ss00"]
[Result "0-1"]
[WhiteElo "1191"]
[BlackElo "2112"]
[TimeControl "600+2"]
[EndTime "9:58:15 PDT"]
[Termination "am00ss00 won by checkmate"]

1. d4 {[%clk 0:09:59.2]} 1... d5 {[%clk 0:09:59.5]} 2. c4 {[%clk 0:09:55.3]}
2... e6 {[%clk 0:10:00.1]} 3. Nf3 {[%clk 0:09:54.4]} 3... c6 {[%clk 0:09:57.8]}
4. Qc2 {[%clk 0:09:46]} 4... f5 {[%clk 0:09:55.4]} 5. g3 {[%clk 0:09:43.4]} 5...
Nf6 {[%clk 0:09:55.8]} 6. Bg2 {[%clk 0:09:44.1]} 6... Bd6 {[%clk 0:09:56.6]} 7.
O-O {[%clk 0:09:42]} 7... O-O {[%clk 0:09:57.4]} 8. b3 {[%clk 0:09:42.9]} 8...
Nbd7 {[%clk 0:09:47.4]} 9. Ba3 {[%clk 0:09:36.8]} 9... Bxa3 {[%clk 0:09:44.3]}
10. Nxa3 {[%clk 0:09:36.1]} 10... Qe7 {[%clk 0:09:45.5]} 11. Qb2 {[%clk
0:09:35.4]} 11... a5 {[%clk 0:09:44.3]} 12. Nc2 {[%clk 0:09:34.4]} 12... b6
{[%clk 0:09:43.9]} 13. Nce1 {[%clk 0:09:09.9]} 13... Ba6 {[%clk 0:09:37.7]} 14.
Rc1 {[%clk 0:09:05.5]} 14... Rfc8 {[%clk 0:09:31.4]} 15. Nd3 {[%clk 0:09:04.4]}
15... Ra7 {[%clk 0:08:50.2]} 16. Rfd1 {[%clk 0:08:55.9]} 16... Rac7 {[%clk
0:08:48.5]} 17. Nfe5 {[%clk 0:08:35.1]} 17... Nxe5 {[%clk 0:08:48.1]} 18. Nxe5
{[%clk 0:08:25.7]} 18... Nd7 {[%clk 0:08:44.5]} 19. e3 {[%clk 0:08:14.2]} 19...
Nxe5 {[%clk 0:08:34.8]} 20. dxe5 {[%clk 0:08:13.5]} 20... h6 {[%clk 0:08:21.7]}
21. Rd2 {[%clk 0:07:47.9]} 21... a4 {[%clk 0:08:01.2]} 22. Rcd1 {[%clk
0:07:07.8]} 22... Qb4 {[%clk 0:07:43.8]} 23. Rc1 {[%clk 0:06:24.2]} 23... b5
{[%clk 0:06:58.2]} 24. Bf1 {[%clk 0:05:24.7]} 24... a3 {[%clk 0:05:43.3]} 25.
Qc2 {[%clk 0:04:57.1]} 25... bxc4 {[%clk 0:05:16.3]} 26. bxc4 {[%clk 0:04:56.3]}
26... dxc4 {[%clk 0:04:33.7]} 27. Rd4 {[%clk 0:04:26.5]} 27... Qb2 {[%clk
0:03:31.7]} 28. Bxc4 {[%clk 0:03:48.9]} 28... Bxc4 {[%clk 0:03:29.6]} 29. Qxc4
{[%clk 0:03:43.8]} 29... Kh7 {[%clk 0:03:22.8]} 30. Rc2 {[%clk 0:03:11.6]} 30...
Qa1+ {[%clk 0:03:05.3]} 31. Kg2 {[%clk 0:03:09.3]} 31... c5 {[%clk 0:03:02.9]}
32. Rd6 {[%clk 0:02:51.3]} 32... Qxe5 {[%clk 0:02:18.3]} 33. Rxe6 {[%clk
0:02:49.8]} 33... Qa1 {[%clk 0:02:15.7]} 34. Rd2 {[%clk 0:02:06.8]} 34... Qb1
{[%clk 0:02:02.9]} 35. Rd5 {[%clk 0:01:45.9]} 35... Qb7 {[%clk 0:01:54.2]} 36.
Rd6 {[%clk 0:01:27.4]} 36... Qb4 {[%clk 0:01:44.3]} 37. Qd3 {[%clk 0:00:58.2]}
37... Qe4+ {[%clk 0:01:38.5]} 38. f3 {[%clk 0:00:53.9]} 38... Qxd3 {[%clk
0:01:35]} 39. Rxd3 {[%clk 0:00:53.5]} 39... Rb7 {[%clk 0:01:31.3]} 40. Rxa3
{[%clk 0:00:48.6]} 40... Rb2+ {[%clk 0:01:29.3]} 41. Kh3 {[%clk 0:00:48.4]}
41... c4 {[%clk 0:01:29.1]} 42. Rc3 {[%clk 0:00:45.8]} 42... Rxa2 {[%clk
0:01:29.4]} 43. Rd4 {[%clk 0:00:45]} 43... Rb8 {[%clk 0:01:24.4]} 44. g4 {[%clk
0:00:31.8]} 44... fxg4+ {[%clk 0:01:17.8]} 45. fxg4 {[%clk 0:00:30.4]} 45...
Rbb2 {[%clk 0:01:14.8]} 46. Rdxc4 {[%clk 0:00:28.1]} 46... Rxh2+ {[%clk
0:01:15.3]} 47. Kg3 {[%clk 0:00:28.9]} 47... Rag2+ {[%clk 0:00:58.5]} 48. Kf3
{[%clk 0:00:28.1]} 48... Rf2+ {[%clk 0:00:58.6]} 49. Kg3 {[%clk 0:00:23.7]}
49... Rhg2+ {[%clk 0:00:53.5]} 50. Kh3 {[%clk 0:00:23.8]} 50... Rg1 {[%clk
0:00:50.1]} 51. Re4 {[%clk 0:00:16.6]} 51... Rf3+ {[%clk 0:00:34.2]} 52. Kh2
{[%clk 0:00:15.7]} 52... Rfg3 {[%clk 0:00:34.9]} 53. Rc7 {[%clk 0:00:13.7]}
53... R1g2+ {[%clk 0:00:32.9]} 54. Kh1 {[%clk 0:00:14]} 54... Rxg4 {[%clk
0:00:33.6]} 55. Ree7 {[%clk 0:00:12.7]} 55... Rg5 {[%clk 0:00:23.7]} 56. Re4
{[%clk 0:00:10.2]} 56... Kg6 {[%clk 0:00:21.4]} 57. Rc6+ {[%clk 0:00:10.1]}
57... Kh5 {[%clk 0:00:21.9]} 58. Rc7 {[%clk 0:00:09.4]} 58... Rg1+ {[%clk
0:00:20.3]} 59. Kh2 {[%clk 0:00:08.8]} 59... R1g4 {[%clk 0:00:20.3]} 60. Ree7
{[%clk 0:00:06.6]} 60... Rh4# {[%clk 0:00:20.1]} 0-1